bitfinex-derivatives/quotes_SOLF0:USTF0_20250624
["timestamp","ask_amount","ask_price","bid_price","bid_amount"]
[1750788180286,6.8919,145.03,145.0,6.8927]
[1750788180587,37.36,145.04,144.98,4.35558081]
[1750788181680,6.8917,145.03,144.98,4.35558081]
[1750788181878,6.8917,145.03,144.98,41.71558081]
[1750788182283,44.2512,145.04,145.0,4.35558081]
[1750788182480,6.8912,145.04,145.0,4.35558081]
[1750788183077,42.057,145.07,145.0,4.35558081]
[1750788183478,6.8912,145.04,145.02,6.8917]
[1750788185483,6.8916,145.03,145.01,6.8922]
[1750788185798,4.35558081,145.06,144.98,41.71558081]
[1750788186687,4.35558081,145.04,144.96,4.35558081]
[1750788186893,37.34,145.03,144.96,4.35558081]
[1750788187196,4.697,145.07,145.0,11.24828081]
[1750788187399,37.34,145.06,145.0,11.24828081]
[1750788187597,6.8917,145.03,145.0,11.24828081]
[1750788187799,37.34,145.06,145.0,4.35558081]
[1750788188598,37.34,145.06,145.01,6.8922]
[1750788189190,6.8913,145.04,145.02,6.892]
[1750788189393,37.34,145.06,145.0,4.35558081]
[1750788189896,6.891,145.04,145.02,6.8916]
[1750788190696,6.8907,145.05,145.03,6.8915]
[1750788191100,37.34,145.06,145.02,4.35558081]
[1750788191306,6.8911,145.04,145.02,11.24728081]
[1750788192205,6.8917,145.03,145.01,6.8922]
[1750788192606,37.34,145.06,145.01,6.8922]
[1750788192999,6.8913,145.04,145.02,6.8918]
[1750788193709,6.8906,145.05,145.03,6.8915]
[1750788194410,6.8906,145.05,145.02,6.8918]
[1750788195008,2.3712,145.07,145.01,6.8922]
[1750788195213,4.35558081,145.06,144.99,37.34]
[1750788195910,6.8923,145.02,145.0,6.8928]
[1750788196814,6.8917,145.03,145.01,6.8924]
[1750788197002,2.3712,145.07,145.0,4.35558081]
[1750788197405,6.8908,145.05,145.0,4.35558081]
[1750788197605,2.3712,145.07,145.0,4.35558081]
[1750788197913,6.8913,145.04,145.0,4.35558081]
[1750788198911,6.8915,145.03,145.0,4.35558081]
[1750788199315,7.36024806,145.07,145.0,4.35558081]
[1750788200123,6.892,145.02,145.0,6.8927]
[1750788201115,6.72483557,145.07,145.0,6.8927]
[1750788201615,6.8917,145.03,145.01,6.8923]
[1750788202114,11.71862786,145.07,144.99,41.69363557]
[1750788202309,6.72483557,145.07,144.99,41.69363557]
[1750788202709,6.8909,145.05,145.02,6.8916]
[1750788202912,6.8909,145.05,144.99,41.69363557]
[1750788203133,2.3712,145.07,145.01,4.35363557]
[1750788203416,6.8906,145.05,145.03,6.8913]
[1750788205915,6.8906,145.05,145.02,6.8917]
[1750788206417,6.72483557,145.07,144.99,54.46718547]
[1750788206618,5.00245732,145.06,144.99,41.69363557]
[1750788206820,6.72483557,145.07,144.99,41.69363557]
[1750788207113,5.00273867,145.06,145.0,6.8927]
[1750788207316,4.35363557,145.05,144.98,12.7735499]
[1750788207620,36.92,145.04,144.98,6.8936]
[1750788207921,39.1684,145.04,144.98,6.8936]
[1750788208217,6.8932,145.0,144.98,6.8936]
[1750788208817,6.8932,145.0,144.97,11.24773557]
[1750788209022,4.35363557,145.03,144.96,49.6935499]
[1750788209217,5.00534514,145.02,144.96,36.92]
[1750788209423,11.24522612,145.03,144.95,11.24853557]
[1750788209628,6.8941,144.98,144.95,11.24853557]
[1750788210520,6.58563557,145.01,144.94,6.8956]
[1750788210713,41.27765356,145.0,144.93,36.92]
[1750788210917,6.8952,144.96,144.92,17.13120346]
[1750788211117,41.27765356,145.0,144.93,6.896]
[1750788211521,6.8956,144.95,144.91,17.13120346]
[1750788211723,6.8956,144.95,144.92,6.8965]
[1750788212127,6.8967,144.93,144.91,4.35765356]
[1750788212329,6.8967,144.93,144.9,36.92]
[1750788212523,6.8967,144.93,144.9,43.8174]
[1750788212723,4.35765356,144.96,144.9,36.92]
[1750788213026,4.35765356,144.96,144.89,17.13120346]
[1750788213027,41.27765356,144.96,144.89,4.35765356]
[1750788213222,41.27765356,144.96,144.9,6.8976]
[1750788213415,41.27765356,144.96,144.89,4.35765356]
[1750788213815,6.8961,144.94,144.91,6.8968]
[1750788214029,6.8961,144.94,144.89,4.35765356]
[1750788214530,6.8961,144.94,144.91,6.8969]
[1750788215031,6.8961,144.94,144.89,4.35765356]
[1750788215328,6.8954,144.95,144.89,4.35765356]
[1750788216230,6.8954,144.95,144.92,6.8965]
[1750788216533,43.8151,144.96,144.91,4.35765356]
[1750788216826,36.92,144.96,144.92,6.8965]
[1750788217031,2.2871,144.97,144.89,4.35765356]
[1750788217330,2.2871,144.97,144.87,12.7735499]
[1750788217527,2.1957,144.96,144.82,12.7735499]
[1750788217721,4.35765356,144.9,144.8,51.4735499]
[1750788217921,4.35765356,144.9,144.8,43.05765356]
[1750788217922,4.35765356,144.88,144.8,43.05765356]
[1750788218125,4.35765356,144.86,144.8,38.7]
[1750788218420,4.35765356,144.84,144.77,38.7]
[1750788219023,4.35765356,144.82,144.77,38.7]
[1750788219221,4.35765356,144.82,144.75,6.9048]
[1750788219622,6.9032,144.79,144.75,6.9048]
[1750788219832,43.05765356,144.85,144.76,4.35765356]
[1750788220027,38.7,144.85,144.8,4.35765356]
[1750788220231,6.9009,144.84,144.8,4.35765356]
[1750788220729,4.35765356,144.88,144.8,4.35765356]
[1750788220927,38.7,144.87,144.8,4.35765356]
[1750788221122,6.9004,144.85,144.81,6.9018]
[1750788221320,38.7,144.87,144.8,4.35765356]
[1750788221720,6.9006,144.84,144.8,11.25975356]
[1750788222334,6.901,144.83,144.8,4.35765356]
[1750788222537,6.901,144.83,144.79,6.9028]
[1750788222734,4.35765356,144.86,144.78,43.05765356]
[1750788224032,6.9013,144.83,144.79,6.9026]
[1750788224732,4.35765356,144.86,144.74,62.0]
[1750788224937,4.35765356,144.79,144.73,2.3695]
[1750788225232,4.35765356,144.78,144.71,4.35765356]
[1750788225429,4.35765356,144.78,144.7,45.27765356]
[1750788226029,4.35765356,144.76,144.7,40.92]
[1750788226531,45.27765356,144.76,144.68,595.54]
[1750788226843,4.35765356,144.74,144.67,43.2163]
[1750788227137,6.907,144.71,144.67,50.1246]
[1750788227737,4.35765356,144.72,144.65,2.3933]
[1750788227932,4.35765356,144.72,144.64,45.27765356]
[1750788228239,6.9083,144.68,144.64,47.8296]
[1750788228726,48.21147782,144.72,144.64,47.8296]
[1750788229035,7.29147782,144.7,144.64,40.92]
[1750788229237,7.29147782,144.7,144.62,2.2919]
[1750788229435,7.29147782,144.68,144.62,2.2919]
[1750788229637,7.29147782,144.68,144.62,9.2028]
[1750788229837,6.9092,144.66,144.62,2.2919]
[1750788230036,7.29147782,144.68,144.62,2.2919]
[1750788230238,7.29147782,144.68,144.61,52.6284]
[1750788230430,7.29147782,144.68,144.61,45.7171]
[1750788230631,7.29147782,144.7,144.61,53.00857782]
[1750788230832,6.908,144.69,144.61,53.00857782]
[1750788231130,6.8695,144.71,144.66,6.9091]
[1750788231326,6.9073,144.7,144.66,6.9091]
[1750788231529,4.6271,144.71,144.63,7.29147782]
[1750788231741,40.92,144.72,144.67,6.9086]
[1750788232036,6.9072,144.71,144.67,6.9086]
[1750788232239,6.9072,144.71,144.63,7.29147782]
[1750788232433,6.9072,144.7,144.63,7.29147782]
[1750788232743,40.92,144.72,144.67,6.9083]
[1750788233131,40.92,144.72,144.65,40.96]
[1750788234042,7.29147782,144.71,144.65,40.96]
[1750788234437,6.9089,144.67,144.64,6.9099]
[1750788234638,7.29147782,144.71,144.62,40.96]
[1750788234838,6.9095,144.66,144.62,47.8707]
[1750788235042,7.29147782,144.69,144.62,47.8707]
[1750788235339,7.29147782,144.69,144.62,40.96]
[1750788235530,40.96,144.68,144.6,6.9117]
[1750788235733,7.29147782,144.67,144.6,6.9117]
[1750788235933,6.9104,144.64,144.61,6.9114]
[1750788236344,6.9104,144.64,144.59,40.96]
[1750788236533,6.9104,144.64,144.6,6.9117]
[1750788237138,6.9107,144.63,144.6,6.9117]
[1750788237429,6.9107,144.63,144.59,40.96]
[1750788237833,6.911,144.62,144.59,40.96]
[1750788238129,6.911,144.62,144.58,137.29349766]
[1750788238130,7.29147782,144.65,144.58,135.03979766]
[1750788239237,6.9118,144.61,144.58,141.95249766]
[1750788239748,6.9118,144.61,144.58,135.03979766]
[1750788240345,6.9118,144.61,144.58,141.95249766]
[1750788240644,7.29147782,144.65,144.58,135.03979766]
[1750788240840,4.6026,144.7,144.6,7.29147782]
[1750788241048,4.6026,144.7,144.62,7.29147782]
[1750788241233,4.6026,144.7,144.63,6.9102]
[1750788241432,4.6026,144.7,144.61,40.98]
[1750788241638,6.9094,144.66,144.61,40.98]
[1750788241846,6.9094,144.66,144.63,6.9102]
[1750788242258,4.6026,144.7,144.61,40.98]
[1750788242633,4.6026,144.7,144.63,6.9101]
[1750788242833,4.6026,144.7,144.62,7.29147782]
[1750788243045,596.58,144.71,144.62,12.07807782]
[1750788243342,43.1854,144.72,144.64,7.29147782]
[1750788244340,6.9084,144.68,144.65,6.9094]
[1750788244739,43.1854,144.72,144.63,2.3358]
[1750788245154,6.9089,144.67,144.64,6.9098]
[1750788245645,6.9092,144.66,144.63,9.2461]
[1750788245842,7.29147782,144.71,144.63,6.9103]
[1750788246044,7.29147782,144.71,144.62,2.3914]
[1750788246444,6.9089,144.67,144.64,6.91]
[1750788246643,43.1854,144.72,144.63,7.29147782]
[1750788247043,43.1854,144.72,144.66,6.909]
[1750788247251,43.1854,144.72,144.63,7.29147782]
[1750788247562,6.9076,144.7,144.67,6.9084]
[1750788247946,43.1854,144.72,144.67,6.9084]
[1750788248247,40.98,144.72,144.65,48.27147782]
[1750788248647,6.908,144.69,144.66,6.9088]
[1750788248849,40.98,144.72,144.66,6.9088]
[1750788249346,40.98,144.72,144.65,40.98]
[1750788249551,7.29147782,144.71,144.62,43.3714]
[1750788249843,7.29147782,144.69,144.62,43.3714]
[1750788250246,6.9103,144.64,144.6,7.29147782]
[1750788250445,40.98,144.68,144.6,7.29147782]
[1750788250848,6.9099,144.65,144.62,6.9108]
[1750788251144,40.98,144.68,144.59,53.08717782]
[1750788251353,6.9108,144.63,144.6,6.9116]
[1750788252138,6.9112,144.62,144.6,6.9116]
[1750788252345,50.68737782,144.68,144.59,45.7957]
[1750788252852,6.9105,144.64,144.61,6.9112]
[1750788253550,43.3959,144.68,144.6,7.29147782]
[1750788254047,43.3959,144.68,144.62,6.9107]
[1750788254354,43.3959,144.68,144.6,7.29147782]
[1750788254952,6.9095,144.66,144.62,6.9107]
[1750788255250,43.3959,144.68,144.62,6.9107]
[1750788255551,6.9098,144.65,144.62,6.9107]
[1750788256450,6.9101,144.64,144.62,6.9107]
[1750788256649,43.3959,144.68,144.62,6.9107]
[1750788257552,6.9095,144.66,144.63,6.9104]
[1750788257950,40.98,144.68,144.62,7.29147782]
[1750788258149,50.12347782,144.71,144.62,7.29147782]
[1750788258357,42.832,144.71,144.63,40.54]
[1750788258753,42.832,144.71,144.66,6.9089]
[1750788259051,42.832,144.71,144.63,40.54]
[1750788259251,50.12347782,144.71,144.6,47.83147782]
[1750788259452,7.29147782,144.69,144.6,47.83147782]
[1750788259959,7.29147782,144.69,144.62,6.911]
[1750788260161,7.29147782,144.69,144.6,40.54]
[1750788260653,6.9103,144.64,144.61,6.9111]
[1750788261647,40.54,144.67,144.58,11.84897782]
[1750788261648,47.83147782,144.67,144.58,11.84897782]
[1750788261853,7.29147782,144.65,144.57,40.54]
[1750788262051,7.29147782,144.63,144.57,40.54]
[1750788262251,47.83147782,144.63,144.56,6.9136]
[1750788262449,47.83147782,144.63,144.54,40.54]
[1750788262645,7.29147782,144.61,144.54,40.54]
[1750788263052,6.9141,144.56,144.54,40.54]
[1750788263253,6.9141,144.56,144.53,6.915]
[1750788263449,7.29147782,144.61,144.5,2.209]
[1750788263649,7.30879773,144.55,144.46,2.209]
[1750788263855,47.84879773,144.55,144.46,2.209]
[1750788264265,6.9159,144.52,144.49,6.9171]
[1750788264961,6.9164,144.51,144.48,6.9177]
[1750788265159,47.84879773,144.55,144.46,9.51779773]
[1750788265565,40.54,144.55,144.48,7.30879773]
[1750788266769,6.9156,144.53,144.5,6.9165]
[1750788267569,6.9151,144.54,144.51,6.9159]
[1750788267763,42.973,144.58,144.5,7.30879773]
[1750788268371,4.37434386,144.57,144.5,7.30879773]
[1750788268567,42.973,144.58,144.54,6.9145]
[1750788268770,42.973,144.58,144.5,9.66109773]
[1750788269169,42.973,144.58,144.53,6.915]
[1750788269467,42.973,144.58,144.5,9.66109773]
[1750788269667,6.9147,144.55,144.52,6.9156]
[1750788269864,42.973,144.58,144.5,7.30879773]
[1750788270069,7.30879773,144.57,144.49,40.54]
[1750788270669,6.9154,144.53,144.5,6.9165]
[1750788270868,7.30879773,144.57,144.49,40.54]
[1750788271171,6.9149,144.54,144.51,6.9161]
[1750788271560,7.30879773,144.57,144.49,40.54]
[1750788271761,6.9157,144.53,144.5,6.9166]
[1750788272766,6.9158,144.52,144.5,6.9166]
[1750788273176,6.9158,144.52,144.49,47.457]
[1750788273670,40.56,144.54,144.46,2.209]
[1750788274166,7.30879773,144.53,144.46,6.9184]
[1750788274370,9.67149773,144.53,144.46,6.9184]
[1750788274575,9.67149773,144.53,144.42,50.12279773]
[1750788274775,6.9181,144.48,144.45,6.9189]
[1750788274971,2.2256,144.52,144.45,6.9189]
[1750788275269,6.9185,144.47,144.44,6.9196]
[1750788275673,40.56,144.5,144.42,42.814]
[1750788275971,7.30879773,144.49,144.42,40.56]
[1750788276377,6.9193,144.45,144.42,47.4804]
[1750788276668,6.9193,144.45,144.42,6.9204]
[1750788276876,6.9193,144.45,144.39,644.72879773]
[1750788277270,7.30879773,144.49,144.39,644.72879773]
[1750788277463,7.30879773,144.47,144.4,6.9213]
[1750788277667,40.56,144.46,144.4,6.9213]
[1750788277976,6.9202,144.43,144.4,6.9213]
[1750788278170,42.9842,144.46,144.4,6.9213]
[1750788278575,42.9842,144.46,144.39,47.4819]
[1750788278778,42.9842,144.46,144.36,40.56]
[1750788278779,7.30879773,144.45,144.36,40.56]
[1750788278973,6.9211,144.41,144.36,40.56]
[1750788279278,42.9842,144.46,144.37,6.9227]
[1750788279279,7.30879773,144.43,144.37,6.9227]
[1750788279474,6.922,144.4,144.37,6.9227]
[1750788279681,40.56,144.42,144.34,14.47949773]
[1750788279878,42.9888,144.42,144.34,7.30879773]
[1750788280080,42.9888,144.42,144.33,47.86879773]
[1750788280270,7.30879773,144.41,144.36,6.9232]
[1750788280679,6.9223,144.39,144.36,6.9232]
[1750788280981,2.4242,144.46,144.37,47.88879773]
[1750788281180,2.4242,144.46,144.37,40.58]
[1750788281476,7.30879773,144.45,144.37,40.58]
[1750788281680,6.9213,144.41,144.35,7.30879773]
[1750788281885,40.58,144.43,144.36,6.9233]
[1750788282176,40.58,144.43,144.35,7.30879773]
[1750788282375,40.58,144.43,144.37,6.9227]
[1750788282776,40.58,144.43,144.36,7.30879773]
[1750788282988,40.58,144.43,144.4,6.9213]
[1750788283175,40.58,144.43,144.36,7.30879773]
[1750788283372,6.921,144.42,144.34,40.58]
[1750788283576,40.58,144.43,144.38,6.9221]
[1750788283768,6.9211,144.41,144.34,40.58]
[1750788283973,40.58,144.43,144.37,6.9227]
[1750788284175,40.58,144.43,144.35,7.30879773]
[1750788284479,6.9214,144.41,144.35,7.30879773]
[1750788284681,40.58,144.43,144.35,7.30879773]
[1750788284871,6.9218,144.4,144.35,7.30879773]
[1750788285283,6.9213,144.41,144.38,6.9224]
[1750788285483,40.58,144.43,144.31,62.0]
[1750788285778,6.9239,144.35,144.28,7.30879773]
[1750788285984,41.84,144.37,144.28,7.30879773]
[1750788286277,41.84,144.37,144.29,6.9266]
[1750788286977,7.30879773,144.36,144.27,49.14879773]
[1750788287180,7.30879773,144.34,144.24,41.84]
[1750788287377,35.12439773,144.4,144.24,6.9292]
[1750788287378,6.9276,144.28,144.24,6.9292]
[1750788287875,41.84,144.31,144.28,6.9272]
[1750788288077,41.84,144.31,144.25,7.30879773]
[1750788288279,44.2394,144.33,144.25,7.30879773]
[1750788288480,44.2394,144.33,144.28,6.927]
[1750788288686,51.54819773,144.33,144.23,69.30879773]
[1750788288877,44.2394,144.33,144.23,62.0]
[1750788289082,44.2394,144.33,144.29,6.9268]
[1750788289083,41.84,144.33,144.29,6.9268]
[1750788289488,6.9257,144.32,144.28,6.9271]
[1750788289685,6.9257,144.32,144.26,7.30879773]
[1750788289879,41.84,144.33,144.26,7.30879773]
[1750788290187,41.84,144.33,144.26,49.14879773]
[1750788290785,6.9257,144.32,144.28,6.927]
[1750788291579,48.7651,144.33,144.29,6.9268]
[1750788291985,41.86,144.36,144.26,49.14879773]
[1750788292181,41.86,144.36,144.28,7.30879773]
[1750788292386,44.2594,144.38,144.3,7.30879773]
[1750788292592,44.2594,144.38,144.33,6.9246]
[1750788292887,6.9231,144.37,144.3,49.16879773]
[1750788293089,44.2594,144.38,144.33,6.9246]
[1750788294189,6.9236,144.36,144.33,6.9246]
[1750788294491,44.2594,144.38,144.32,6.9252]
[1750788295291,44.2594,144.38,144.33,6.9249]
[1750788295484,41.86,144.38,144.3,49.16879773]
[1750788296088,41.86,144.38,144.32,7.30879773]
[1750788296390,6.9233,144.37,144.34,6.9241]
[1750788296593,41.86,144.38,144.32,7.30879773]
[1750788296891,41.86,144.38,144.3,41.86]
[1750788297092,41.86,144.38,144.3,49.16879773]
[1750788297391,6.9244,144.34,144.31,6.9255]
[1750788297891,41.86,144.38,144.3,49.16879773]
[1750788298091,6.9241,144.35,144.32,6.9251]
[1750788298295,41.86,144.38,144.3,49.16879773]
[1750788298985,6.9238,144.36,144.33,6.9249]
[1750788299595,6.924,144.35,144.32,6.9251]
[1750788301290,49.16879773,144.38,144.3,41.86]
[1750788301796,49.16879773,144.38,144.33,6.9247]
[1750788302295,6.9237,144.36,144.3,49.16879773]
[1750788302884,2.3408,144.43,144.34,7.30879773]
[1750788303084,44.2008,144.43,144.36,7.30879773]
[1750788303287,6.9213,144.41,144.38,6.9224]
[1750788303483,44.2008,144.43,144.36,7.30879773]
[1750788303685,41.86,144.43,144.36,7.30879773]
[1750788303884,6.9202,144.43,144.4,6.9213]
[1750788304084,41.86,144.45,144.37,2.3343]
[1750788304296,41.86,144.45,144.38,7.30879773]
[1750788304502,6.9199,144.44,144.4,6.9215]
[1750788304797,41.86,144.45,144.38,49.16879773]
[1750788305190,6.9204,144.43,144.38,49.16879773]
[1750788305391,41.86,144.45,144.38,49.16879773]
[1750788305793,6.9206,144.42,144.39,6.9217]
[1750788306399,41.86,144.45,144.38,49.16879773]
[1750788306697,2.3054,144.46,144.4,7.30879773]
[1750788306893,6.919,144.46,144.43,6.92]
[1750788308094,6.9183,144.47,144.44,6.9196]
[1750788308397,2.2143,144.5,144.42,49.16879773]
[1750788309488,2.2143,144.5,144.43,6.9198]
[1750788309689,2.2143,144.5,144.42,49.16879773]
[1750788309897,6.9189,144.46,144.42,49.16879773]
[1750788310098,2.2143,144.5,144.42,49.16879773]
[1750788310299,7.30879773,144.49,144.42,41.86]
[1750788310492,6.9204,144.43,144.4,14.23019773]
[1750788310891,6.9204,144.43,144.4,7.30879773]
[1750788311087,6.9208,144.42,144.4,7.30879773]
[1750788311297,7.30879773,144.49,144.4,7.30879773]
[1750788311495,7.30879773,144.47,144.38,7.30879773]
[1750788311696,44.219,144.46,144.37,44.1743]
[1750788312189,7.30879773,144.45,144.37,44.1743]
[1750788312497,7.30879773,144.43,144.37,41.84]
[1750788312698,2.4287,144.42,144.34,6.9243]
[1750788312902,44.2687,144.42,144.34,6.9243]
[1750788313293,6.9233,144.37,144.34,6.9243]
[1750788313694,7.30879773,144.41,144.33,41.84]
[1750788313994,6.9243,144.35,144.33,41.84]
[1750788314298,2.379,144.4,144.33,41.84]
[1750788314495,6.9244,144.34,144.33,41.84]
[1750788314693,6.9244,144.34,144.32,2.2223]
[1750788316199,6.9244,144.34,144.31,14.23459773]
[1750788316402,7.30879773,144.39,144.3,41.84]
[1750788316605,42.34,144.38,144.3,41.84]
[1750788316907,6.9256,144.32,144.3,41.84]
[1750788317205,42.34,144.38,144.3,41.84]
[1750788317411,7.30879773,144.37,144.29,6.9267]
[1750788317796,9.61799773,144.37,144.29,6.9267]
[1750788318009,6.9258,144.32,144.29,6.9267]
[1750788318809,6.926,144.31,144.28,9.352]
[1750788319311,9.61799773,144.37,144.28,2.425]
[1750788319808,6.9261,144.31,144.28,2.425]
[1750788320304,2.3092,144.37,144.28,2.425]
[1750788320508,9.61799773,144.37,144.28,2.425]
[1750788320711,6.9252,144.33,144.3,6.9263]
[1750788321207,9.61799773,144.37,144.3,6.9263]
[1750788321508,6.9251,144.33,144.3,6.9263]
[1750788321710,9.61799773,144.37,144.28,2.425]
[1750788322010,9.61799773,144.37,144.29,7.30879773]
[1750788322209,42.34,144.38,144.29,7.30879773]
[1750788322403,42.34,144.38,144.3,42.34]
[1750788322602,6.9242,144.35,144.32,6.9251]
[1750788322901,42.34,144.38,144.31,7.30879773]
[1750788323107,42.34,144.38,144.31,15.75406662]
[1750788323301,9.68779773,144.4,144.31,15.75406662]
[1750788323302,6.9231,144.37,144.34,6.9243]
[1750788323703,9.68779773,144.4,144.32,8.44526889]
[1750788323895,9.68779773,144.4,144.31,15.75406662]
[1750788323896,6.9238,144.36,144.31,15.75406662]
[1750788324100,9.68779773,144.4,144.31,15.75406662]
[1750788324300,9.68779773,144.4,144.32,8.44526889]
[1750788324301,6.923,144.37,144.32,8.44526889]
[1750788325313,6.9227,144.38,144.32,8.44526889]
[1750788325810,6.9223,144.39,144.33,7.30879773]
[1750788326013,9.73749773,144.42,144.34,42.34]
[1750788326307,2.4287,144.42,144.34,42.34]
[1750788326515,6.9226,144.38,144.34,42.34]
[1750788326707,2.4287,144.42,144.34,42.34]
[1750788326904,6.9239,144.35,144.34,42.34]
[1750788327104,6.9239,144.35,144.32,15.37026889]
[1750788327305,6.9239,144.35,144.32,6.925]
[1750788328203,6.9244,144.34,144.32,6.925]
[1750788328512,7.30879773,144.39,144.31,49.2657]
[1750788328708,9.69359773,144.39,144.31,49.2657]
[1750788329011,6.9248,144.34,144.31,49.2657]
[1750788330113,6.9242,144.35,144.31,42.34]
[1750788330416,6.9242,144.35,144.31,50.78526889]
[1750788330714,6.9237,144.36,144.33,6.9249]
[1750788331814,6.9232,144.37,144.33,8.44526889]
[1750788332711,2.4287,144.42,144.34,7.30879773]
[1750788332915,2.4287,144.42,144.35,50.78526889]
[1750788335216,2.3559,144.44,144.37,8.44526889]
[1750788336114,2.3559,144.44,144.38,6.9225]
[1750788336918,6.9217,144.4,144.38,6.9225]
[1750788338119,6.9217,144.4,144.37,6.9228]
[1750788338418,6.9222,144.39,144.36,8.44526889]
[1750788338716,2.3559,144.44,144.37,6.9227]
[1750788338916,6.9219,144.4,144.37,6.9227]
[1750788340315,6.9221,144.39,144.37,6.9227]
[1750788341220,6.9221,144.39,144.36,15.36846889]
[1750788341820,7.30879773,144.43,144.36,8.44526889]
[1750788342021,7.30879773,144.41,144.35,50.78526889]
[1750788342219,6.9239,144.36,144.34,8.44526889]
[1750788342514,6.9239,144.36,144.33,15.36996889]
[1750788343115,6.9241,144.35,144.33,15.36996889]
[1750788343321,7.30879773,144.39,144.32,50.78526889]
[1750788343523,7.30879773,144.39,144.32,42.34]
[1750788344415,6.9247,144.34,144.31,15.37096889]
[1750788344822,6.9247,144.34,144.31,8.44526889]
[1750788346319,6.9247,144.34,144.3,640.42]
[1750788346320,7.30879773,144.34,144.3,8.44526889]
[1750788346619,7.30879773,144.34,144.27,8.44526889]
[1750788346817,6.9273,144.28,144.26,8.44526889]
[1750788347017,6.9273,144.28,144.25,8.44526889]
[1750788347210,7.30879773,144.32,144.24,50.64526889]
[1750788347410,9.52059773,144.32,144.24,42.2]
[1750788347615,9.52059773,144.32,144.24,50.64526889]
[1750788347909,6.9272,144.29,144.25,6.9283]
[1750788348116,6.9272,144.29,144.25,15.37356889]
[1750788348522,6.9272,144.29,144.25,6.9283]
[1750788348722,6.9273,144.28,144.25,6.9283]
[1750788349023,6.9273,144.28,144.25,15.37356889]
[1750788349532,6.9273,144.28,144.25,6.9283]
[1750788349724,6.9279,144.27,144.24,204.03436889]
[1750788350025,9.52059773,144.32,144.24,195.5091]
[1750788350222,6.9284,144.26,144.24,188.58]
[1750788350428,6.9284,144.26,144.24,42.2]
[1750788350632,9.60799773,144.31,144.24,42.2]
[1750788350822,6.9269,144.29,144.26,6.928]
[1750788351724,6.9273,144.28,144.25,6.9286]
[1750788354232,13.8421,144.42,144.26,7.30879773]
[1750788354431,49.52879773,144.38,144.28,7.30879773]
[1750788354632,49.52879773,144.38,144.28,195.56879773]
[1750788354929,600.3346,144.37,144.28,188.26]
[1750788355327,6.9248,144.34,144.3,6.9261]
[1750788355833,600.3346,144.37,144.28,188.26]
[1750788356222,600.3346,144.37,144.29,7.30879773]
[1750788356424,6.9245,144.34,144.31,6.9254]
[1750788356925,6.925,144.33,144.3,6.9261]
[1750788357224,600.3346,144.37,144.29,7.30879773]
[1750788358231,6.9247,144.34,144.31,6.9257]
[1750788358424,6.9247,144.34,144.29,7.30879773]
[1750788358836,6.9247,144.34,144.31,6.9256]
[1750788359735,6.925,144.33,144.3,6.9261]
[1750788360426,6.9245,144.34,144.31,6.9258]
[1750788360626,600.3346,144.37,144.31,6.9258]
[1750788360827,600.3346,144.37,144.29,7.30879773]
[1750788361022,600.3346,144.37,144.3,6.9261]
[1750788361328,7.30879773,144.34,144.27,8.44526889]
[1750788361631,49.50879773,144.34,144.25,18.91499773]
[1750788362026,49.50879773,144.34,144.25,11.6062]
[1750788362235,6.9278,144.27,144.24,203.99406662]
[1750788362729,6.9275,144.28,144.24,203.99406662]
[1750788362930,2.2255,144.33,144.25,6.9283]
[1750788363434,6.9271,144.29,144.26,6.9282]
[1750788363735,642.5546,144.37,144.28,7.30879773]
[1750788364235,6.9259,144.31,144.28,14.23569773]
[1750788364630,6.9265,144.3,144.27,77.37286889]
[1750788364826,6.9265,144.3,144.27,15.37286889]
[1750788365033,6.9265,144.3,144.27,6.9276]
[1750788365337,6.9265,144.3,144.26,22.68216662]